fUSD/lending_fUSD_20250530
["ID","MTS","AMOUNT","RATE_DAILY","PERIOD"]
[363127566,1748592656299,-447.8,0.00022191,2]
[363127567,1748592656309,-1056.58,0.00022191,2]
[363127568,1748592656319,-749.98,0.00022191,2]
[363127569,1748592656328,-420.0,0.00022191,2]
[363127570,1748592656338,-420.0,0.00022191,2]
[363127571,1748592656347,-1749.74,0.00022191,2]
[363127572,1748592656357,-1094.57,0.00022191,2]
[363127573,1748592656366,-151.0,0.00022191,7]
[363127574,1748592656375,-184.19,0.00022191,2]
[363127575,1748592656385,-9594.47,0.00022191,2]
[363127576,1748592656394,-684.68,0.00022191,2]
[363127577,1748592656404,-1255.57,0.00022191,2]
[363127578,1748592656414,-1404.48,0.00022191,2]
[363127579,1748592656423,-930.11,0.00022191,2]
[363127580,1748592656433,-500.0,0.00022191,2]
[363127581,1748592656443,-761.7,0.00022191,2]
[363127582,1748592656453,-420.0,0.00022191,2]
[363127583,1748592656463,-1740.59,0.00022191,2]
[363127584,1748592656474,-2867.02,0.00022191,2]
[363127585,1748592656483,-1723.27,0.00022191,2]
[363127586,1748592656493,-641.38,0.00022191,2]
[363127587,1748592656502,-1086.66,0.00022191,2]
[363127588,1748592656512,-420.0,0.00022191,2]
[363127589,1748592656521,-247.152437,0.00022191,7]
[363127590,1748592656531,-1086.3,0.00022191,2]
[363127591,1748592656541,-732.89,0.00022191,2]
[363127592,1748592656551,-420.0,0.00022191,2]
[363127593,1748592656560,-2007.49,0.00022191,2]
[363127594,1748592656570,-835.03,0.00022191,2]
[363127595,1748592656580,-11293.22,0.00022191,2]
[363127596,1748592656589,-1107.3,0.00022191,2]
[363127597,1748592656599,-420.0,0.00022191,2]
[363127598,1748592656609,-3081.38,0.00022191,2]
[363127599,1748592656619,-420.0,0.00022191,2]
[363127600,1748592656628,-739.32,0.00022191,2]
[363127601,1748592656638,-538.33,0.00022191,2]
[363127602,1748592656647,-4132.65,0.00022191,2]
[363127603,1748592656657,-1441.62,0.00022191,2]
[363127604,1748592656667,-4382.09,0.00022191,2]
[363127605,1748592656676,-898.95,0.00022191,2]
[363127606,1748592656686,-528.0,0.00022191,2]
[363127607,1748592656697,-790.68,0.00022191,2]
[363127608,1748592656707,-420.0,0.00022191,2]
[363127609,1748592656717,-720.31,0.00022191,2]
[363127610,1748592656727,-1556.02,0.00022191,2]
[363127611,1748592656738,-4308.21,0.00022191,2]
[363127612,1748592656748,-1031.66,0.00022191,2]
[363127613,1748592656758,-420.0,0.00022191,2]
[363127614,1748592656769,-925.86,0.00022191,2]
[363127615,1748592656779,-810.66,0.00022191,2]
[363127616,1748592656789,-420.0,0.00022191,2]
[363127617,1748592656798,-809.38,0.00022191,2]
[363127618,1748592656808,-420.0,0.00022191,2]
[363127619,1748592656818,-228.70818861,0.00022191,2]
[363127620,1748592656828,-6935.42397712,0.00022191,2]
[363127621,1748592656938,-259.8878484,0.00022191,2]
[363127622,1748592656963,-875.81996469,0.00022191,2]
[363127623,1748592656974,-686.1,0.00022191,2]
[363127624,1748592656986,-1202.799999,0.00022191,2]
[363127625,1748592656998,-9243.95423337,0.00022191,2]
[363127626,1748592658476,-1151.32092954,0.00022191,2]
[363127627,1748592658490,-1581.25616873,0.00022191,2]
[363127628,1748592658502,-1577.59687915,0.00022191,2]
[363127629,1748592658512,-1341.25,0.00022191,2]
[363127630,1748592658522,-2510.41,0.00022191,2]
[363127631,1748592658532,-5102.46,0.00022191,2]
[363127632,1748592658542,-577.44,0.00022191,2]
[363127633,1748592658551,-420.0,0.00022191,2]
[363127634,1748592658561,-308.75422115,0.00022191,2]
[363127635,1748592658586,-342.108,0.00022191,2]
[363127636,1748592658599,-609.5,0.00022191,2]
[363127637,1748592658611,-1727.18777885,0.00022191,2]
[363127638,1748592658621,-616.45,0.00022191,2]
[363127639,1748592658631,-254.11222115,0.00022191,2]
[363127640,1748592659633,-113.41791069,0.00021917,2]
[363127641,1748592659645,-306.58208931,0.00021917,2]
[363127642,1748592659655,-420.0,0.00021917,2]
[363127643,1748592659665,-420.0,0.00021917,2]
[363127644,1748592659674,-3324.41,0.00021917,2]
[363127645,1748592659684,-420.0,0.00021917,2]
[363127646,1748592659696,-420.0,0.00021917,2]
[363127647,1748592659706,-420.0,0.00021917,2]
[363127648,1748592659716,-420.0,0.00021917,2]
[363127649,1748592659726,-420.0,0.00021917,2]
[363127650,1748592659736,-865.20767076,0.00022191,2]
[363127651,1748592659748,-345.83010809,0.00022191,2]
[363127652,1748592659758,-1518.07,0.00022191,2]
[363127653,1748592659767,-1007.65,0.00022191,2]
[363127654,1748592659779,-21375.0,0.00022191,2]
[363127655,1748592659789,-420.0,0.00022191,2]
[363127656,1748592659798,-606.13,0.00022191,2]
[363127657,1748592659807,-801.59,0.00022191,2]
[363127658,1748592659816,-420.0,0.00022191,2]
[363127659,1748592659826,-420.0,0.00022191,2]
[363127660,1748592659836,-420.0,0.00022191,2]
[363127661,1748592659845,-736.64,0.00022191,2]
[363127662,1748592659855,-661.7,0.00022191,2]
[363127663,1748592659864,-3052.03,0.00022191,2]
[363127664,1748592659873,-2565.8,0.00022191,2]
[363127665,1748592659883,-420.0,0.00022191,2]
[363127666,1748592659892,-891.72,0.00022191,2]
[363127667,1748592659902,-171.96100609,0.00022191,2]
[363127668,1748592659912,-420.0,0.00022191,2]
[363127669,1748592659921,-1439.7,0.00022191,2]
[363127670,1748592659931,-420.0,0.00022191,2]
[363127671,1748592659940,-420.0,0.00022191,2]
[363127672,1748592659950,-1964.58,0.00022191,2]
[363127673,1748592659959,-151.0,0.00022191,7]
[363127674,1748592659969,-1304.07,0.00022191,2]
[363127675,1748592659978,-420.0,0.00022191,2]
[363127676,1748592659987,-420.0,0.00022191,2]
[363127677,1748592659997,-2416.19,0.00022191,2]
[363127678,1748592660006,-420.0,0.00022191,2]
[363127679,1748592660016,-1171.82,0.00022191,2]
[363127680,1748592660026,-1083.43,0.00022191,2]
[363127681,1748592660036,-420.0,0.00022191,2]
[363127682,1748592660045,-456.78,0.00022191,2]
[363127683,1748592660055,-420.0,0.00022191,2]
[363127684,1748592660065,-3324.41,0.00022191,2]
[363127685,1748592660075,-420.0,0.00022191,2]
[363127686,1748592660084,-420.0,0.00022191,2]
[363127687,1748592660094,-207.0,0.00022192,7]
[363127688,1748592660103,-3970.2852993,0.00022195,2]
[363127689,1748592660113,-150.0,0.00022196,2]
[363127690,1748592660123,-303.52,0.000222,2]
[363127691,1748592660132,-694.26,0.000222,2]
[363127692,1748592660142,-1079.0,0.000222,2]
[363127693,1748592660151,-707.63,0.000222,2]
[363127694,1748592660161,-250.0,0.00022206,2]
[363127695,1748592660170,-7400.65283429,0.0002221,2]
[363127696,1748592660180,-891.55075223,0.0002221,2]
[363127697,1748592660192,-263.44924777,0.0002221,2]
[363127698,1748592660201,-6929.0,0.0002221,2]
[363127699,1748592660211,-278.467,0.0002221,2]
[363127700,1748592660220,-4068.0,0.0002221,2]
[363127701,1748592660230,-882.0,0.0002221,2]
[363127702,1748592660239,-848.0,0.0002221,2]
[363127703,1748592660249,-1527.31772759,0.00022216,2]
[363127704,1748592660259,-4801.44794114,0.00022216,2]
[363127705,1748592660269,-3970.2852993,0.00022222,2]
[363127706,1748592660279,-151.0,0.00022241,7]
[363127707,1748592660288,-166.66666667,0.00022247,2]
[363127708,1748592660297,-3970.2852993,0.00022249,2]
[363127709,1748592660307,-150.0,0.00022257,2]
[363127710,1748592660317,-150.0,0.00022265,2]
[363127711,1748592660328,-941.0,0.00022265,2]
[363127712,1748592660338,-1314.0,0.00022265,2]
[363127713,1748592660347,-634.0,0.00022265,2]
[363127714,1748592660357,-801.0,0.00022265,2]
[363127715,1748592660366,-1268.0,0.00022265,2]
[363127716,1748592660376,-1466.0,0.00022265,2]
[363127717,1748592660385,-588.0,0.00022265,2]
[363127718,1748592660395,-556.0,0.00022265,2]
[363127719,1748592660404,-924.0,0.00022265,2]
[363127720,1748592660415,-1527.31772759,0.00022273,2]
[363127721,1748592660425,-320.916788,0.00022273,7]
[363127722,1748592660434,-320.916788,0.00022273,7]
[363127723,1748592660444,-4801.44794114,0.00022273,2]
[363127724,1748592660453,-150.0,0.00022275,2]
[363127725,1748592660462,-3970.2852993,0.00022276,2]
[363127726,1748592660472,-150.0,0.0002228,2]
[363127727,1748592660481,-480.0,0.000223,2]
[363127728,1748592660491,-237.0,0.000223,2]
[363127729,1748592660500,-375.0,0.000223,2]
[363127730,1748592660510,-3970.2852993,0.00022303,2]
[363127731,1748592660519,-150.0,0.00022309,2]
[363127732,1748592660529,-166.66666667,0.00022329,2]
[363127733,1748592660538,-1618.0209,0.0002233,2]
[363127734,1748592660548,-6099.9351,0.0002233,2]
[363127735,1748592660557,-426.4538,0.0002233,2]
[363127736,1748592660567,-150.0,0.0002233,2]
[363127737,1748592660644,-151.0,0.0002233,7]
[363127738,1748592660655,-151.0,0.0002233,7]
[363127739,1748592660665,-1527.31772759,0.0002233,2]
[363127740,1748592660673,-151.0,0.0002233,7]
[363127741,1748592660682,-151.0,0.0002233,7]
[363127742,1748592660692,-151.0,0.0002233,7]
[363127743,1748592660704,-256.6558796,0.0002233,2]
[363127744,1748592660714,-3970.2852993,0.0002233,2]
[363127745,1748592660723,-4801.44794114,0.0002233,2]
[363127746,1748592660734,-266.17146737,0.0002233,2]
[363127747,1748592660744,-10234.31522711,0.0002233,2]
[363127748,1748592660755,-1708.52590946,0.0002233,2]
[363127749,1748592660764,-1074.2529021,0.00022337,2]
[363127750,1748592660775,-225.575035,0.00022337,7]
[363127751,1748592660785,-225.575035,0.00022337,7]
[363127752,1748592660794,-151.0,0.00022365,7]
[363127753,1748592660803,-235.712034,0.00022365,7]
[363127754,1748592660812,-150.0,0.00022371,2]
[363127755,1748592660821,-1000.0,0.00022372,2]
[363127756,1748592660831,-289.49672376,0.00022375,2]
[363127757,1748592660841,-1000.0,0.00022386,2]
[363127758,1748592660852,-713.5403,0.000224,2]
[363127759,1748592660862,-1129.2219,0.000224,2]
[363127760,1748592660870,-4471.74685862,0.000224,7]
[363127761,1748592660878,-4471.74685835,0.000224,7]
[363127762,1748592660887,-4471.74685835,0.000224,7]
[363127763,1748592660897,-256.43617752,0.0002241,2]
[363127764,1748592660906,-150.0,0.0002241,2]
[363127765,1748592660915,-500.0,0.0002241,2]
[363127766,1748592660924,-500.0,0.0002241,2]
[363127767,1748592660933,-500.0,0.0002241,2]
[363127768,1748592660942,-500.0,0.0002241,2]
[363127769,1748592660951,-500.0,0.0002241,2]
[363127770,1748592660960,-500.0,0.0002241,2]
[363127771,1748592660969,-500.0,0.0002241,2]
[363127772,1748592660980,-500.0,0.0002241,2]
[363127773,1748592660989,-500.0,0.0002241,2]
[363127774,1748592660998,-500.0,0.0002241,2]
[363127775,1748592661007,-500.0,0.0002241,2]
[363127776,1748592661016,-500.0,0.0002241,2]
[363127777,1748592661025,-500.0,0.0002241,2]
[363127778,1748592661034,-500.0,0.0002241,2]
[363127779,1748592661044,-500.0,0.0002241,2]
[363127780,1748592661053,-500.0,0.0002241,2]
[363127781,1748592661062,-500.0,0.0002241,2]
[363127782,1748592661071,-500.0,0.0002241,2]
[363127783,1748592661080,-500.0,0.0002241,2]
[363127784,1748592661090,-500.0,0.0002241,2]
[363127785,1748592661099,-500.0,0.0002241,2]
[363127786,1748592661109,-500.0,0.0002241,2]
[363127787,1748592661118,-500.0,0.0002241,2]
[363127788,1748592661127,-500.0,0.0002241,2]
[363127789,1748592661137,-500.0,0.0002241,2]
[363127790,1748592661148,-500.0,0.0002241,2]
[363127791,1748592661157,-500.0,0.0002241,2]
[363127792,1748592661167,-500.0,0.0002241,2]
[363127793,1748592661175,-500.0,0.0002241,2]
[363127794,1748592661185,-500.0,0.0002241,2]
[363127795,1748592661195,-500.0,0.0002241,2]
[363127796,1748592661205,-500.0,0.0002241,2]
[363127797,1748592661215,-500.0,0.0002241,2]
[363127798,1748592661226,-500.0,0.0002241,2]
[363127799,1748592661235,-500.0,0.0002241,2]
[363127800,1748592661245,-500.0,0.0002241,2]
[363127801,1748592661255,-500.0,0.0002241,2]
[363127802,1748592661265,-500.0,0.0002241,2]
[363127803,1748592661274,-500.0,0.0002241,2]
[363127804,1748592661283,-500.0,0.0002241,2]
[363127805,1748592661292,-500.0,0.0002241,2]
[363127806,1748592661301,-500.0,0.0002241,2]
[363127807,1748592661311,-500.0,0.0002241,2]
[363127808,1748592661320,-500.0,0.0002241,2]
[363127809,1748592661329,-500.0,0.0002241,2]
[363127810,1748592661339,-500.0,0.0002241,2]
[363127811,1748592661351,-500.0,0.0002241,2]
[363127812,1748592661360,-500.0,0.0002241,2]
[363127813,1748592661369,-500.0,0.0002241,2]
[363127814,1748592661378,-500.0,0.0002241,2]
[363127815,1748592661388,-500.0,0.0002241,2]
[363127816,1748592661397,-500.0,0.0002241,2]
[363127817,1748592661407,-500.0,0.0002241,2]
[363127818,1748592661416,-500.0,0.0002241,2]
[363127819,1748592661425,-500.0,0.0002241,2]
[363127820,1748592661435,-500.0,0.0002241,2]
[363127821,1748592661445,-500.0,0.0002241,2]
[363127822,1748592661455,-500.0,0.0002241,2]
[363127823,1748592661464,-500.0,0.0002241,2]
[363127824,1748592661473,-500.0,0.0002241,2]
[363127825,1748592661482,-500.0,0.0002241,2]
[363127826,1748592661492,-500.0,0.0002241,2]
[363127827,1748592661501,-500.0,0.0002241,2]
[363127828,1748592661511,-500.0,0.0002241,2]
[363127829,1748592661520,-500.0,0.0002241,2]
[363127830,1748592661529,-500.0,0.0002241,2]
[363127831,1748592661539,-500.0,0.0002241,2]
[363127832,1748592661548,-500.0,0.0002241,2]
[363127833,1748592661557,-500.0,0.0002241,2]
[363127834,1748592661567,-500.0,0.0002241,2]
[363127835,1748592661576,-500.0,0.0002241,2]
[363127836,1748592661585,-500.0,0.0002241,2]
[363127837,1748592661596,-500.0,0.0002241,2]
[363127838,1748592661606,-500.0,0.0002241,2]
[363127839,1748592661615,-500.0,0.0002241,2]
[363127840,1748592661624,-500.0,0.0002241,2]
[363127841,1748592661634,-500.0,0.0002241,2]
[363127842,1748592661643,-500.0,0.0002241,2]
[363127843,1748592661652,-500.0,0.0002241,2]
[363127844,1748592661662,-500.0,0.0002241,2]
[363127845,1748592661671,-500.0,0.0002241,2]
[363127846,1748592661680,-500.0,0.0002241,2]
[363127847,1748592661689,-500.0,0.0002241,2]
[363127848,1748592661700,-500.0,0.0002241,2]
[363127849,1748592661710,-500.0,0.0002241,2]
[363127850,1748592661719,-500.0,0.0002241,2]
[363127851,1748592661728,-500.0,0.0002241,2]
[363127852,1748592661738,-500.0,0.0002241,2]
[363127853,1748592661747,-500.0,0.0002241,2]
[363127854,1748592661756,-500.0,0.0002241,2]
[363127855,1748592661765,-500.0,0.0002241,2]
[363127856,1748592661777,-500.0,0.0002241,2]
[363127857,1748592661788,-500.0,0.0002241,2]
[363127858,1748592661797,-500.0,0.0002241,2]
[363127859,1748592661806,-500.0,0.0002241,2]
[363127860,1748592661816,-500.0,0.0002241,2]
[363127861,1748592661826,-500.0,0.0002241,2]
[363127862,1748592661836,-500.0,0.0002241,2]
[363127863,1748592661847,-500.0,0.0002241,2]
[363127864,1748592661857,-500.0,0.0002241,2]
[363127865,1748592661866,-500.0,0.0002241,2]
[363127866,1748592661875,-500.0,0.0002241,2]
[363127867,1748592661885,-500.0,0.0002241,2]
[363127868,1748592661894,-500.0,0.0002241,2]
[363127869,1748592661903,-500.0,0.0002241,2]
[363127870,1748592661913,-500.0,0.0002241,2]
[363127871,1748592661922,-500.0,0.0002241,2]
[363127872,1748592661931,-500.0,0.0002241,2]
[363127873,1748592661941,-500.0,0.0002241,2]
[363127874,1748592661950,-962.0,0.0002241,2]
[363127875,1748592661960,-500.0,0.0002241,2]
[363127876,1748592661969,-500.0,0.0002241,2]
[363127877,1748592661978,-500.0,0.0002241,2]
[363127878,1748592661988,-500.0,0.0002241,2]
[363127879,1748592661997,-500.0,0.0002241,2]
[363127880,1748592662006,-500.0,0.0002241,2]
[363127881,1748592662015,-500.0,0.0002241,2]
[363127882,1748592662025,-500.0,0.0002241,2]
[363127883,1748592662034,-500.0,0.0002241,2]
[363127884,1748592662044,-500.0,0.0002241,2]
[363127885,1748592662053,-500.0,0.0002241,2]
[363127886,1748592662062,-500.0,0.0002241,2]
[363127887,1748592662071,-500.0,0.0002241,2]
[363127888,1748592662081,-500.0,0.0002241,2]
[363127889,1748592662091,-500.0,0.0002241,2]
[363127890,1748592662102,-631.0,0.0002241,2]
[363127891,1748592662111,-500.0,0.0002241,2]
[363127892,1748592662121,-500.0,0.0002241,2]
[363127893,1748592662131,-500.0,0.0002241,2]
[363127894,1748592662141,-511.0,0.0002241,2]
[363127895,1748592662151,-500.0,0.0002241,2]
[363127896,1748592662160,-500.0,0.0002241,2]
[363127897,1748592662170,-500.0,0.0002241,2]
[363127898,1748592662180,-500.0,0.0002241,2]
[363127899,1748592662189,-500.0,0.0002241,2]
[363127900,1748592662199,-845.0,0.0002241,2]
[363127901,1748592662209,-151.0,0.0002241,7]
[363127902,1748592662219,-500.0,0.0002241,2]
[363127903,1748592662229,-150.0,0.0002241,2]
[363127904,1748592662239,-1062.0,0.0002241,2]
[363127905,1748592662248,-150.0,0.0002241,2]
[363127906,1748592662258,-151.29069845,0.0002241,2]
[363127907,1748592662268,-241.8252228,0.0002241,2]
[363127908,1748592662278,-157.5611572,0.0002241,2]
[363127909,1748592662287,-150.0,0.0002241,2]
[363127910,1748592662297,-153.98187331,0.0002241,2]
[363127911,1748592662307,-558.0,0.0002241,2]
[363127912,1748592662316,-150.0,0.0002241,2]
[363127913,1748592662326,-150.0,0.0002241,2]
[363127914,1748592662336,-150.0,0.0002241,2]
[363127915,1748592662346,-150.0,0.0002241,2]
[363127916,1748592662356,-162.26764183,0.0002241,2]
[363127917,1748592662366,-274.33102619,0.0002241,2]
[363127918,1748592662376,-500.0,0.0002241,2]
[363127919,1748592662386,-151.0,0.0002241,7]
[363127920,1748592662396,-166.66666667,0.00022411,2]
[363127921,1748592662407,-151.0,0.00022415,7]
[363127922,1748592662416,-151.0,0.00022415,7]
[363127923,1748592662426,-1007.0027243,0.00022422,2]
[363127924,1748592662436,-45844.8935619,0.00022422,2]
[363127925,1748592662445,-3846.0966319,0.00022422,2]
[363127926,1748592662455,-566.12408622,0.00022422,2]
[363127927,1748592662465,-1000.0,0.00022428,2]
[363127928,1748592662475,-151.0,0.00022429,7]
[363127929,1748592662484,-151.0,0.00022429,7]
[363127930,1748592662494,-1522.772821,0.00022429,7]
[363127931,1748592662504,-151.0,0.00022429,7]
[363127932,1748592662514,-195.211892,0.00022429,7]
[363127933,1748592662524,-151.0,0.00022429,7]
[363127934,1748592662534,-151.0,0.00022429,7]
[363127935,1748592662544,-151.0,0.00022429,7]
[363127936,1748592662554,-298.87698516,0.00022429,2]
[363127937,1748592662563,-320.916788,0.00022429,7]
[363127938,1748592662574,-320.916788,0.00022429,7]
[363127939,1748592662583,-684.47726192,0.00022429,2]
[363127940,1748592662593,-260154.19746894,0.0002243,2]
[363127941,1748592662609,-871.65724794,0.0002243,2]
[363127942,1748592662628,-178362.72370152,0.0002243,2]
[363127943,1748592671344,206.0,0.00020152,2]
[363127957,1748593028971,200.0,0.00021,2]
[363127958,1748593108562,2110.0,0.0002093,2]
[363127959,1748593110210,200.0,0.00021,2]
[363127961,1748593250544,852.11,0.00019023,2]
[363127962,1748593271052,1077.0,0.00020879,2]
[363127963,1748593275641,1077.0,0.00019835,2]
[363127964,1748593280252,1077.0,0.00019018,2]
[363127965,1748593284916,1077.0,0.00019018,2]
[363127966,1748593297797,150.0,0.00020926,7]
[363127969,1748593377363,154.14,0.00013699,2]
[363127970,1748593377572,154.14,0.00020548,2]
[363127971,1748593508952,967.289794,0.0002,2]
[363127972,1748593508975,25000.0,0.0002,2]
[363127973,1748593554664,673.6,0.0001902,2]
[363127974,1748593554690,34704.25800941,0.0001902,2]
[363127975,1748593555048,2701.46891275,0.0001902,2]
[363127976,1748593555263,3065.72580603,6.94e-05,2]
[363127996,1748593755527,261.89291555,0.000199,2]
[363127998,1748593803106,159.55588563,0.00019973,2]
[363128005,1748593831820,-151.0,0.00019977,2]
[363128007,1748593831834,-300.0,0.00019999,2]
[363128010,1748593831844,-180.68197868,0.00019999,2]
[363128011,1748593831857,-119.31802132,0.00019999,2]
[363128012,1748593831867,-300.0,0.00019999,2]
[363128013,1748593831877,-1200.0,0.00019999,2]
[363128014,1748593831887,-1180.68197868,0.0002,2]
[363128015,1748593831981,-386.44996,0.0002,2]
[363128016,1748593831993,-595.39054192,0.0002,2]
[363128017,1748593832005,-1829.3180236,0.0002,2]
[363128018,1748593832017,-461.1075,0.0002,2]
[363128019,1748593832029,-816.20425299,0.0002,2]
[363128020,1748593832040,-1116.309453,0.0002,2]
[363128021,1748593832051,-1422.32,0.0002,2]
[363128023,1748593832697,-18414.73071677,0.0002,2]
[363128024,1748593832713,-3430.86173256,0.0002,2]
[363128025,1748593832737,-566.9339932,0.0002,2]
[363128037,1748593833398,151.0,0.00019968,2]
[363128043,1748593838088,-1050.8,0.0002,2]
[363128044,1748593838100,-13238.58899139,0.0002,2]
[363128045,1748593838113,-40497.03783325,0.0002,2]
[363128046,1748593838122,-216.35522326,0.000205,2]
[363128047,1748593838131,-352.53062143,0.00020648,2]
[363128048,1748593838141,-1000.0,0.00020772,2]
[363128049,1748593838151,-229.31,0.00020785,2]
[363128050,1748593838161,-238.27,0.00020907,2]
[363128051,1748593838170,-852.11,0.00021287,2]
[363128052,1748593838180,-300.0,0.000214,7]
[363128053,1748593838189,-2110.0,0.0002143,2]
[363128054,1748593838200,-207.4,0.00021487,2]
[363128055,1748593838209,-1206.9,0.000215,2]
[363128057,1748593838219,-1206.9,0.000215,2]
[363128058,1748593838228,-1206.9,0.000215,2]
[363128060,1748593838236,-1206.9,0.000215,2]
[363128062,1748593838246,-600.0,0.000215,7]
[363128064,1748593838255,-20246.68030305,0.00021572,2]
[363128066,1748593838264,-1000.0,0.000216,7]
[363128068,1748593838273,-1206.9,0.000216,2]
[363128070,1748593838283,-168.1928613,0.00021699,2]
[363128072,1748593838292,-166.66666667,0.00021699,2]
[363128074,1748593838302,-1300.0,0.000217,7]
[363128077,1748593838312,-420.0,0.00021777,2]
[363128079,1748593838321,-1600.0,0.000218,7]
[363128081,1748593838331,-6099.9351,0.00021817,2]
[363128083,1748593838341,-426.4538,0.00021817,2]
[363128085,1748593838350,-1618.0209,0.00021817,2]
[363128087,1748593838360,-300.00120996,0.00021817,2]
[363128089,1748593838369,-199.10769615,0.00021817,2]
[363128091,1748593838378,-200.41709198,0.0002185,7]
[363128093,1748593838387,-1680.0,0.00021881,2]
[363128095,1748593838396,-300.0,0.000219,7]
[363128097,1748593838406,-3007.36524149,0.000219,2]
[363128099,1748593838416,-3007.36524133,0.000219,2]
[363128101,1748593838426,-3007.36524133,0.000219,2]
[363128103,1748593838436,-3007.36524133,0.000219,2]
[363128105,1748593838445,-152.20915799,0.00021904,2]
[363128107,1748593838454,-285.62628285,0.00021904,2]
[363128109,1748593838463,-151.0,0.00021904,2]
[363128111,1748593838472,-972.554,0.00021916,2]
[363128112,1748593838482,-327.50746568,0.00021916,2]
[363128114,1748593838492,-363.36764401,0.00021916,2]
[363128117,1748593838502,-438.32000805,0.00021916,2]
[363128119,1748593838511,-395.88150439,0.00021916,2]
[363128121,1748593838521,-500.0,0.00021916,2]
[363128123,1748593838531,-384.13453849,0.00021916,2]
[363128125,1748593838540,-628.78462597,0.00021916,2]
[363128127,1748593838550,-420.0,0.00021917,2]
[363128128,1748593838559,-505.86401036,0.00021917,2]
[363128131,1748593838569,-420.0,0.00021917,2]
[363128133,1748593838581,-420.0,0.00021917,2]
[363128135,1748593838590,-420.0,0.00021917,2]
[363128137,1748593838599,-367.14887992,0.00021917,2]
[363128139,1748593838609,-420.0,0.00021917,2]
[363128141,1748593838619,-420.0,0.00021917,2]
[363128143,1748593838628,-420.0,0.00021917,2]
[363128145,1748593838638,-420.0,0.00021917,2]
[363128147,1748593838648,-420.0,0.00021917,2]
[363128149,1748593838658,-429.02365213,0.00021917,2]
[363128151,1748593838667,-420.0,0.00021917,2]
[363128153,1748593838676,-420.0,0.00021917,2]
[363128155,1748593838686,-420.0,0.00021917,2]
[363128157,1748593838695,-420.0,0.00021917,2]
[363128159,1748593838705,-420.0,0.00021917,2]
[363128161,1748593838715,-464.7,0.00021917,2]
[363128163,1748593838724,-456.85,0.00021917,2]
[363128165,1748593838734,-420.00605235,0.00021917,2]
[363128167,1748593838743,-500.0,0.00021917,2]
[363128169,1748593838753,-186.46508155,0.00021917,2]
[363128171,1748593838762,-500.0,0.00021917,2]
[363128173,1748593838772,-500.0,0.00021917,2]
[363128175,1748593838782,-420.0,0.00021917,2]
[363128177,1748593838792,-420.0,0.00021917,2]
[363128179,1748593838802,-420.0,0.00021917,2]
[363128180,1748593838812,-502.84881267,0.00021917,2]
[363128181,1748593838822,-420.0,0.00021917,2]
[363128182,1748593838832,-420.0,0.00021917,2]
[363128183,1748593838842,-420.0,0.00021917,2]
[363128184,1748593838852,-530.45803274,0.00021917,2]
[363128185,1748593838862,-420.0,0.00021917,2]
[363128186,1748593838872,-420.0,0.00021917,2]
[363128187,1748593838882,-438.38,0.00021917,2]
[363128188,1748593838894,-504.18362721,0.00021917,2]
[363128189,1748593838904,-585.13,0.00021917,2]